bitfinex/quotes_SOLUSD_20241101
["timestamp","ask_amount","ask_price","bid_price","bid_amount"]
[1730423688963,33.75248235,169.23,169.21,3.64524555]
[1730423689260,33.75248235,169.23,169.19,2.90209224]
[1730423689457,33.75248235,169.23,169.2,3.64515148]
[1730423689667,33.75248235,169.23,169.21,3.64515148]
[1730423689856,33.75248235,169.23,169.19,2.90200545]
[1730423690066,20.0,169.23,169.2,11.4885301]
[1730423690267,20.0,169.23,169.21,3.64514775]
[1730423690460,20.0,169.23,169.19,13.75378235]
[1730423690671,27.84338235,169.23,169.2,3.64528035]
[1730423690858,27.84338235,169.23,169.21,3.64528035]
[1730423691061,27.84338235,169.23,169.19,5.9104]
[1730423691263,27.84338235,169.23,169.2,3.64522292]
[1730423691577,27.84338235,169.23,169.21,3.64522292]
[1730423691772,27.84338235,169.23,169.19,5.9104]
[1730423691977,27.84338235,169.23,169.2,3.64512985]
[1730423692166,7.84338235,169.22,169.21,3.64512985]
[1730423692865,7.84338235,169.22,169.18,2.90193382]
[1730423693073,7.84338235,169.22,169.19,6.54733804]
[1730423693276,7.84338235,169.22,169.18,5.9108]
[1730423693575,7.84338235,169.22,169.19,3.64532304]
[1730423693782,7.84338235,169.22,169.2,3.64532304]
[1730423693981,7.84338235,169.22,169.18,5.9108]
[1730423694206,7.84338235,169.22,169.19,6.54744217]
[1730423694394,7.84338235,169.22,169.2,3.64533449]
[1730423694576,7.84338235,169.22,169.18,5.9108]
[1730423694885,7.84338235,169.22,169.19,6.54728634]
[1730423695077,7.84338235,169.22,169.2,3.64525137]
[1730423695262,7.84338235,169.22,169.18,5.9108]
[1730423695456,7.84338235,169.22,169.19,6.54727808]
[1730423695673,7.84338235,169.22,169.2,3.64525398]
[1730423695873,7.84338235,169.22,169.18,5.9108]
[1730423696074,7.84338235,169.22,169.19,6.54747448]
[1730423696363,7.84338235,169.22,169.2,3.64534417]
[1730423696563,7.84338235,169.22,169.18,5.9108]
[1730423696875,7.84338235,169.22,169.19,6.5473308]
[1730423697079,7.84338235,169.22,169.2,3.6452832]
[1730423697255,7.84338235,169.22,169.18,5.9108]
[1730423697457,7.84338235,169.22,169.19,6.54769638]
[1730423697757,7.84338235,169.22,169.2,3.64546201]
[1730423698079,7.84338235,169.22,169.18,5.9108]
[1730423698258,33.75278235,169.23,169.19,6.54697746]
[1730423698457,33.75278235,169.23,169.2,3.64505372]
[1730423698658,33.75278235,169.23,169.21,3.64505372]
[1730423698876,33.75278235,169.23,169.19,2.90172001]
[1730423699050,33.75278235,169.23,169.2,3.64478572]
[1730423699259,33.75278235,169.23,169.21,3.64478572]
[1730423699458,33.75278235,169.23,169.19,2.90170299]
[1730423699673,33.75278235,169.23,169.2,3.64520773]
[1730423699975,33.75278235,169.23,169.21,3.64520773]
[1730423700169,33.75278235,169.23,169.18,5.9108]
[1730423700364,7.84338235,169.22,169.19,6.54669112]
[1730423700573,7.84338235,169.2,169.17,14.7773]
[1730423700777,7.84338235,169.19,169.18,3.64576313]
[1730423701852,13.75348235,169.2,169.18,3.64576313]
[1730423702057,13.75348235,169.2,169.19,3.64576313]
[1730423702477,5.9101,169.2,169.19,3.64576313]
[1730423703367,5.9101,169.2,169.16,7.84338235]
[1730423703567,5.9101,169.2,169.17,3.64585722]
[1730423703776,5.9101,169.2,169.18,6.54861517]
[1730423704077,5.9101,169.2,169.19,3.64585722]
[1730423705788,7.84338235,169.2,169.15,5.9118]
[1730423705979,7.84338235,169.2,169.16,6.54844564]
[1730423706174,7.84338235,169.2,169.17,6.54844564]
[1730423706376,7.84338235,169.2,169.18,3.64571598]
[1730423706681,7.84338235,169.2,169.15,13.75518235]
[1730423706887,7.84338235,169.2,169.16,3.64551503]
[1730423707094,7.84338235,169.2,169.17,3.64551503]
[1730423707381,7.84338235,169.2,169.18,3.64551503]
[1730423707585,7.84338235,169.2,169.15,13.75518235]
[1730423707792,7.84338235,169.2,169.16,6.54832078]
[1730423707973,7.84338235,169.2,169.17,6.54832078]
[1730423708175,7.84338235,169.2,169.18,3.64580126]
[1730423708478,7.84338235,169.2,169.19,3.64580126]
[1730423711785,7.84338235,169.2,169.17,2.90192515]
[1730423711786,20.0,169.19,169.17,2.90192515]
[1730423712081,7.84338235,169.18,169.14,2.9028767]
[1730423712287,7.84338235,169.15,169.12,11.32509321]
[1730423712469,7.84338235,169.15,169.13,6.54834996]
[1730423712670,7.84338235,169.15,169.14,6.54834996]
[1730423713987,7.84338235,169.15,169.14,3.64425729]
[1730423714195,7.84338235,169.15,169.14,6.54525303]
[1730423714686,7.84338235,169.15,169.14,6.54521299]
[1730423715281,7.84338235,169.15,169.14,3.64425464]
[1730423715487,7.84338235,169.16,169.14,3.64425464]
[1730423715688,7.84338235,169.16,169.15,3.64425464]
[1730423717483,7.84338235,169.16,169.13,2.89962524]
[1730423717793,7.84338235,169.15,169.13,2.89962524]
[1730423717989,7.84338235,169.15,169.13,2.89914287]
[1730423718180,7.84338235,169.15,169.14,3.64210644]
[1730423720192,7.84338235,169.16,169.14,3.64210644]
[1730423720498,7.84338235,169.17,169.13,2.89914287]
[1730423720694,7.84338235,169.17,169.14,3.64091873]
[1730423720889,7.84338235,169.17,169.13,2.89914287]
[1730423721083,7.84338235,169.17,169.14,3.6409306]
[1730423721290,7.84338235,169.17,169.13,2.89914287]
[1730423721596,7.84338235,169.17,169.14,3.64063191]
[1730423721799,7.84338235,169.17,169.13,2.89756553]
[1730423722104,7.84338235,169.17,169.14,3.64060218]
[1730423722277,27.84338235,169.19,169.14,7.84338235]
[1730423722476,27.84338235,169.19,169.15,3.6400571]
[1730423722694,27.84338235,169.19,169.14,7.84338235]
[1730423722999,27.84338235,169.19,169.15,3.63977639]
[1730423723201,27.84338235,169.19,169.14,7.84338235]
[1730423723415,27.84338235,169.19,169.15,3.63962937]
[1730423723696,7.84338235,169.18,169.13,28.53718235]
[1730423724005,20.0,169.2,169.16,7.84338235]
[1730423724302,20.0,169.2,169.17,3.63962645]
[1730423724495,20.0,169.2,169.16,13.75458235]
[1730423724794,20.0,169.2,169.17,3.63840682]
[1730423725102,20.0,169.2,169.16,13.75458235]
[1730423725617,20.0,169.2,169.17,3.63811029]
[1730423725901,20.0,169.2,169.16,13.75458235]
[1730423726107,20.0,169.2,169.17,3.63811292]
[1730423726277,20.0,169.2,169.16,13.75458235]
[1730423726476,20.0,169.2,169.17,3.63815612]
[1730423726705,7.84338235,169.21,169.16,13.75458235]
[1730423727004,7.84338235,169.21,169.17,3.63816083]
[1730423727299,20.0,169.21,169.17,7.84338235]
[1730423727478,20.0,169.22,169.18,7.84338235]
[1730423727677,20.0,169.22,169.17,7.84338235]
[1730423728577,27.84338235,169.22,169.17,7.84338235]
[1730423728781,7.84338235,169.21,169.17,5.911]
[1730423729084,27.84338235,169.22,169.17,13.75438235]
[1730423730210,7.84338235,169.21,169.16,22.62228235]
[1730423730407,7.84338235,169.21,169.17,3.63833754]
[1730423730611,7.84338235,169.21,169.16,20.6904]
[1730423730789,7.84338235,169.21,169.17,3.63844973]
[1730423731108,7.84338235,169.21,169.16,20.6904]
[1730423731290,7.84338235,169.21,169.17,9.54968444]
[1730423731906,7.84338235,169.21,169.17,5.9111]
[1730423732212,7.84338235,169.19,169.16,20.6904]
[1730423732508,25.9097,169.22,169.16,20.6904]
[1730423732509,7.84338235,169.2,169.16,14.7789]
[1730423733007,7.84338235,169.21,169.16,17.67493979]
[1730423733188,7.84338235,169.21,169.17,3.63837598]
[1730423733695,13.75318235,169.21,169.17,3.63837598]
[1730423734109,27.84338235,169.22,169.17,11.48175833]
[1730423734405,33.75298235,169.22,169.17,11.48175833]
[1730423734607,7.84338235,169.23,169.18,11.4813674]
[1730423734780,7.84338235,169.23,169.18,7.84338235]
[1730423735598,7.84338235,169.23,169.18,13.75418235]
[1730423736194,7.84338235,169.22,169.18,5.9108]
[1730423737304,7.84338235,169.21,169.17,24.32757598]
[1730423737617,7.84338235,169.21,169.18,3.6375456]
[1730423737787,7.84338235,169.21,169.17,24.32757598]
[1730423738108,7.84338235,169.22,169.18,3.63766231]
[1730423738318,7.84338235,169.22,169.17,32.17095833]
[1730423738609,7.84338235,169.22,169.18,3.63743159]
[1730423738905,7.84338235,169.22,169.17,32.17095833]
[1730423739102,7.84338235,169.22,169.18,3.63742121]
[1730423739406,7.84338235,169.22,169.17,32.17095833]
[1730423739605,7.84338235,169.22,169.18,3.63738737]
[1730423739794,7.84338235,169.22,169.17,32.17095833]
[1730423739996,7.84338235,169.22,169.18,3.63759793]
[1730423740202,7.84338235,169.22,169.17,32.17095833]
[1730423740498,7.84338235,169.22,169.18,3.63753264]
[1730423740699,7.84338235,169.22,169.17,32.17095833]
[1730423740903,7.84338235,169.22,169.18,3.63761053]
[1730423741098,7.84338235,169.22,169.17,32.17095833]
[1730423741307,7.84338235,169.22,169.18,3.63762467]
[1730423741607,7.84338235,169.22,169.17,32.17095833]
[1730423741778,7.84338235,169.22,169.18,3.63733182]
[1730423741983,7.84338235,169.22,169.17,32.17095833]
[1730423742184,7.84338235,169.22,169.18,3.63710073]
[1730423742408,7.84338235,169.22,169.18,5.9108]
[1730423744604,7.84338235,169.21,169.17,14.778]
[1730423744905,7.84338235,169.21,169.18,3.63763989]
[1730423745113,7.84338235,169.21,169.17,14.778]
[1730423747691,7.84338235,169.21,169.18,3.63803927]
[1730423747892,7.84338235,169.21,169.17,14.778]
[1730423748092,7.84338235,169.21,169.18,3.63796657]
[1730423748408,13.75288235,169.22,169.17,22.62138235]
[1730423748709,13.75288235,169.22,169.18,3.63806751]
[1730423748902,13.75288235,169.22,169.17,28.53258235]
[1730423749094,13.75288235,169.22,169.18,3.63853831]
[1730423749295,13.75288235,169.22,169.17,28.53258235]
[1730423749496,13.75288235,169.22,169.18,3.63883109]
[1730423749696,13.75288235,169.22,169.17,28.53258235]
[1730423749901,13.75288235,169.22,169.18,3.63853649]
[1730423750099,13.75288235,169.22,169.17,28.53258235]
[1730423750298,13.75288235,169.22,169.18,3.63853529]
[1730423750499,13.75288235,169.22,169.17,28.53258235]
[1730423750699,13.75288235,169.22,169.18,3.63892831]
[1730423750902,13.75288235,169.22,169.17,28.53258235]
[1730423751100,13.75288235,169.22,169.18,3.63897452]
[1730423751404,13.75288235,169.22,169.17,28.53258235]
[1730423751709,13.75288235,169.22,169.18,3.63906505]
[1730423751908,7.84338235,169.21,169.17,20.6892]
[1730423752108,7.84338235,169.21,169.18,3.63908127]
[1730423752301,7.84338235,169.21,169.17,20.6892]
[1730423752720,7.84338235,169.21,169.18,3.63916954]
[1730423753020,7.84338235,169.21,169.17,20.6892]
[1730423753321,7.84338235,169.21,169.18,3.63927026]
[1730423753499,7.84338235,169.21,169.17,20.6892]
[1730423753699,7.84338235,169.21,169.18,3.63932016]
[1730423753907,7.84338235,169.21,169.17,20.6892]
[1730423754107,7.84338235,169.21,169.18,3.63930252]
[1730423754307,7.84338235,169.21,169.17,20.6892]
[1730423754510,7.84338235,169.21,169.18,3.63930155]
[1730423754822,7.84338235,169.21,169.17,14.778]
[1730423755015,7.84338235,169.2,169.18,3.63935207]
[1730423755222,5.9094,169.22,169.17,17.67502931]
[1730423755223,7.84338235,169.21,169.17,14.778]
[1730423755520,7.84338235,169.23,169.18,3.63995858]
[1730423755703,7.84338235,169.23,169.18,7.84338235]
[1730423755906,7.84338235,169.23,169.19,3.63929338]
[1730423756225,7.84338235,169.23,169.18,0.25098]
[1730423756412,7.84338235,169.23,169.19,3.63928745]
[1730423756615,7.84338235,169.2,169.17,14.778]
[1730423756813,7.84338235,169.21,169.18,3.63915387]
[1730423757014,7.84338235,169.21,169.17,14.778]
[1730423757223,7.84338235,169.21,169.18,3.63948771]
[1730423757526,7.84338235,169.21,169.17,14.778]
[1730423757727,7.84338235,169.21,169.18,3.63956433]
[1730423758022,7.84338235,169.21,169.17,14.778]
[1730423758224,7.84338235,169.21,169.18,3.63945807]
[1730423758422,7.84338235,169.21,169.17,14.778]
[1730423758624,7.84338235,169.21,169.18,3.63952804]
[1730423758919,7.84338235,169.21,169.17,14.778]
[1730423759106,7.84338235,169.21,169.18,3.6395735]
[1730423759309,7.84338235,169.21,169.17,14.778]
[1730423761028,7.84338235,169.21,169.17,20.6892]
[1730423761324,7.84338235,169.21,169.18,3.63976708]
[1730423761494,7.84338235,169.21,169.17,20.6892]
[1730423761697,7.84338235,169.21,169.18,3.63975807]
[1730423761916,7.84338235,169.21,169.17,20.6892]
[1730423762125,7.84338235,169.21,169.18,3.63977815]
[1730423762421,7.84338235,169.21,169.17,14.778]
[1730423762601,7.84338235,169.21,169.18,3.63950678]
[1730423762804,7.84338235,169.21,169.17,14.778]
[1730423763025,13.75288235,169.22,169.18,3.63948094]
[1730423763233,13.75288235,169.22,169.17,28.53248235]
[1730423763519,7.84338235,169.22,169.18,3.63966399]
[1730423763701,7.84338235,169.22,169.17,20.6891]
[1730423763903,7.84338235,169.22,169.18,3.63947726]
[1730423764102,7.84338235,169.22,169.17,20.6891]
[1730423764309,7.84338235,169.22,169.18,3.63922834]
[1730423764517,7.84338235,169.22,169.17,20.6891]
[1730423764702,7.84338235,169.22,169.18,3.63907547]
[1730423764910,7.84338235,169.22,169.17,20.6891]
[1730423765113,7.84338235,169.22,169.18,3.63910149]
[1730423765312,7.84338235,169.22,169.17,20.6891]
[1730423765520,13.75278235,169.22,169.18,3.63847549]
[1730423765702,7.84338235,169.21,169.17,20.6891]
[1730423765902,7.84338235,169.21,169.18,3.63826099]
[1730423766201,7.84338235,169.21,169.17,20.6891]
[1730423766526,7.84338235,169.21,169.18,6.53802921]
[1730423766819,7.84338235,169.21,169.17,14.778]
[1730423767011,7.84338235,169.21,169.18,6.53780044]
[1730423767210,7.84338235,169.21,169.17,14.778]
[1730423767412,13.75278235,169.22,169.18,6.53777947]
[1730423767718,13.75278235,169.22,169.19,6.53770819]
[1730423767924,13.75278235,169.22,169.17,20.689]
[1730423768104,13.75278235,169.22,169.18,6.53771126]
[1730423768301,13.75278235,169.22,169.19,6.53771126]
[1730423768501,13.75278235,169.22,169.17,20.689]
[1730423768700,13.75278235,169.22,169.18,6.53857888]
[1730423768901,13.75278235,169.22,169.19,6.53857888]
[1730423769124,13.75278235,169.22,169.17,20.689]
[1730423769305,13.75278235,169.22,169.18,6.53867522]
[1730423769506,13.75278235,169.22,169.19,6.53867522]
[1730423769727,13.75278235,169.22,169.17,20.689]
[1730423769901,13.75278235,169.22,169.18,6.53951967]
[1730423770102,13.75278235,169.22,169.19,6.53943278]
[1730423770321,13.75278235,169.22,169.17,20.689]
[1730423770515,13.75278235,169.22,169.18,6.53969465]
[1730423770703,13.75278235,169.22,169.18,2.90235688]
[1730423770904,13.75278235,169.22,169.19,2.90235688]
[1730423771119,13.75278235,169.22,169.17,20.689]
[1730423771317,13.75278235,169.22,169.18,6.53994459]
[1730423771502,13.75278235,169.22,169.19,2.90246783]
[1730423771711,13.75278235,169.22,169.17,20.689]
[1730423771907,13.75278235,169.22,169.18,6.53993457]
[1730423772109,13.75278235,169.22,169.19,2.90250557]
[1730423772309,13.75278235,169.22,169.17,20.689]
[1730423772527,13.75278235,169.22,169.18,6.54027987]
[1730423772824,7.84338235,169.23,169.19,2.90252865]
[1730423773030,20.0,169.23,169.2,2.90232496]
[1730423773211,20.0,169.23,169.18,13.75408235]
[1730423773405,27.84338235,169.23,169.19,6.53923139]
[1730423773601,27.84338235,169.23,169.2,2.90197296]
[1730423773812,27.84338235,169.23,169.18,5.9107]
[1730423774135,27.84338235,169.23,169.19,3.63759007]
[1730423774433,27.84338235,169.23,169.2,2.90201725]
[1730423774724,27.84338235,169.23,169.18,5.9107]
[1730423774903,27.84338235,169.23,169.19,6.53979212]
[1730423775105,27.84338235,169.23,169.2,2.90188176]
[1730423775417,7.84338235,169.22,169.18,5.9107]
[1730423775616,7.84338235,169.22,169.19,6.54007242]
[1730423775817,7.84338235,169.22,169.2,2.90179096]
[1730423776011,7.84338235,169.22,169.18,5.9107]
[1730423776308,7.84338235,169.22,169.19,6.54009216]
[1730423776507,7.84338235,169.22,169.2,2.90179962]
[1730423776723,7.84338235,169.22,169.18,5.9107]
[1730423776907,7.84338235,169.22,169.19,6.54054455]
[1730423777131,7.84338235,169.22,169.2,2.90176602]
[1730423777335,7.84338235,169.22,169.18,5.9107]
[1730423777509,7.84338235,169.22,169.19,2.90192614]
[1730423777710,7.84338235,169.22,169.19,6.54145902]
[1730423777900,7.84338235,169.22,169.2,6.54145902]
[1730423778113,7.84338235,169.22,169.17,20.6892]
[1730423778304,33.75248235,169.23,169.18,6.54152674]
[1730423778527,20.0,169.23,169.19,6.54152674]
[1730423778721,20.0,169.23,169.2,6.54152674]
[1730423779029,20.0,169.23,169.19,0.25098]
[1730423779321,20.0,169.23,169.2,6.54136687]
[1730423779527,20.0,169.23,169.19,0.25098]
[1730423779750,20.0,169.23,169.2,6.54195172]
[1730423779912,7.84338235,169.23,169.19,6.16128]
[1730423780109,7.84338235,169.23,169.2,6.54217848]
[1730423780421,7.84338235,169.23,169.19,5.9103]
[1730423780740,7.84338235,169.22,169.2,6.54293923]
[1730423780910,7.84338235,169.22,169.19,5.9103]
[1730423781315,7.84338235,169.22,169.2,6.54376486]
[1730423781518,7.84338235,169.22,169.18,0.25098]
[1730423781727,7.84338235,169.22,169.19,6.54437078]
[1730423781908,7.84338235,169.22,169.2,6.54437078]
[1730423782107,7.84338235,169.22,169.21,3.64259818]
[1730423784135,7.84338235,169.23,169.21,3.64259818]
[1730423784307,7.84338235,169.23,169.19,2.90182307]
[1730423784508,7.84338235,169.23,169.2,3.64481048]
[1730423784833,7.84338235,169.23,169.18,6.16178]
[1730423785130,7.84338235,169.23,169.19,6.54701544]
[1730423785433,7.84338235,169.23,169.2,3.64494587]
[1730423785642,7.84338235,169.22,169.18,5.9108]
[1730423785819,7.84338235,169.22,169.19,6.54733987]
[1730423786134,7.84338235,169.21,169.2,3.64515732]
[1730423786923,13.75318235,169.21,169.16,2.90239663]
[1730423787128,13.75318235,169.21,169.15,5.9115]
[1730423787129,7.84338235,169.2,169.17,6.54802776]
[1730423787329,7.84338235,169.2,169.18,6.54802776]
[1730423787523,7.84338235,169.2,169.19,3.64563113]
[1730423788319,7.84338235,169.2,169.15,5.9115]
[1730423788532,7.84338235,169.2,169.19,3.6456471]
[1730423790727,13.75348235,169.2,169.19,3.6456471]
[1730423791130,13.75348235,169.2,169.15,13.75488235]
[1730423791345,13.75348235,169.2,169.16,6.54831973]
[1730423791632,13.75348235,169.2,169.17,6.54831973]
[1730423791819,13.75348235,169.2,169.18,6.54831973]
[1730423792022,13.75348235,169.2,169.19,3.64581414]
[1730423794031,7.84338235,169.2,169.19,3.64581414]
[1730423794423,7.84338235,169.2,169.19,3.64565695]
[1730423794617,13.75318235,169.21,169.19,3.64565695]
[1730423794818,7.84338235,169.2,169.15,13.75488235]
[1730423795030,7.84338235,169.2,169.16,6.54791812]
[1730423795229,7.84338235,169.2,169.17,6.54791812]
[1730423795450,7.84338235,169.2,169.18,6.54791812]
[1730423795739,7.84338235,169.2,169.15,13.75488235]
[1730423795740,13.75368235,169.2,169.19,3.64559666]
[1730423796740,7.84338235,169.2,169.19,3.64559666]
[1730423797640,7.84338235,169.21,169.19,3.64559666]
[1730423797836,7.84338235,169.21,169.2,3.64559666]
[1730423802838,7.84338235,169.21,169.2,3.64374034]
[1730423806453,7.84338235,169.21,169.15,7.84338235]
[1730423806754,7.84338235,169.21,169.16,9.55524796]
[1730423806946,7.84338235,169.2,169.17,3.64374796]
[1730423807122,7.84338235,169.2,169.18,3.64374796]
[1730423807322,7.84338235,169.21,169.19,3.64374796]
[1730423807544,7.84338235,169.21,169.2,3.64374796]
[1730423808049,7.84338235,169.21,169.2,3.6438733]
[1730423810229,7.84338235,169.21,169.2,3.64350384]
[1730423810631,13.75318235,169.21,169.2,3.64350384]
[1730423810948,13.75318235,169.21,169.15,5.9118]
[1730423811129,7.84338235,169.19,169.16,6.54461744]
[1730423811335,7.84338235,169.19,169.17,6.54461744]
[1730423811529,7.84338235,169.19,169.18,6.54461744]
[1730423812225,33.75388235,169.19,169.18,6.54461744]
[1730423812448,33.75388235,169.19,169.18,3.64371483]
[1730423813929,33.75388235,169.19,169.14,5.9122]
[1730423814229,7.84338235,169.16,169.15,6.54478603]
[1730423817624,7.84338235,169.16,169.13,14.7807]
[1730423817845,7.84338235,169.16,169.15,2.90050643]
[1730423818054,7.84338235,169.16,169.15,3.64373794]
[1730423818241,7.84338235,169.16,169.15,6.54431903]
[1730423818441,7.84338235,169.16,169.15,3.64373794]
[1730423820536,13.75488235,169.16,169.15,3.64373794]
[1730423820836,13.75488235,169.16,169.1,20.6974]
[1730423821038,7.84338235,169.11,169.06,15.81457268]
[1730423821355,7.84338235,169.11,169.03,35.9956]
[1730423821356,7.84338235,169.09,169.07,6.54733169]
[1730423821555,7.84338235,169.08,169.03,6.94385589]
[1730423821856,7.84338235,169.08,169.04,6.54339607]
[1730423822033,7.84338235,169.08,169.05,6.54339607]
[1730423822233,7.84338235,169.08,169.06,6.54339607]
[1730423822433,7.84338235,169.07,169.04,2.90011797]
[1730423822633,7.84338235,169.07,169.05,6.54207602]
[1730423822834,7.84338235,169.06,169.03,2.90011797]
[1730423823052,7.84338235,169.05,169.04,6.54300899]
[1730423823256,7.84338235,169.05,169.04,3.64289102]
[1730423823656,7.84338235,169.05,169.01,9.07193606]
[1730423823845,7.84338235,169.05,169.02,3.62712533]
[1730423824051,7.84338235,169.05,169.03,3.62712533]
[1730423824262,7.84338235,169.05,169.02,3.62712533]
[1730423824443,7.84338235,169.05,169.03,3.62712533]
[1730423824741,7.84338235,169.05,169.01,9.06913998]
[1730423824742,7.84338235,169.05,169.02,3.62712533]
[1730423824940,7.84338235,169.05,169.03,3.62712533]
[1730423825153,7.84338235,169.05,169.02,3.62712533]
[1730423825347,7.84338235,169.05,169.01,12.69626531]
[1730423825551,7.84338235,169.03,169.01,12.69626531]
[1730423825759,7.84338235,169.03,169.0,5.9171]
[1730423825947,7.84338235,169.03,169.0,9.54422533]
[1730423826258,7.84338235,169.03,169.0,5.9171]
[1730423826463,7.84338235,169.04,169.0,5.9171]
[1730423827634,7.84338235,169.03,169.0,5.9171]
[1730423828754,7.84338235,169.03,168.98,11.47050768]
[1730423828950,20.0,169.02,168.97,9.06147333]
[1730423829151,7.84338235,168.99,168.97,6.17290437]
[1730423829357,7.84338235,168.99,168.96,9.54542533]
[1730423829658,7.84338235,168.99,168.96,5.9183]
[1730423830038,7.84338235,168.99,168.95,14.7965]
[1730423830245,7.84338235,168.98,168.95,20.7154]
[1730423830446,7.84338235,168.97,168.91,33.03016365]
[1730423830655,7.84338235,168.95,168.91,25.1867813]
[1730423830856,16.0561,169.02,168.91,38.95046365]
[1730423830857,7.84338235,168.96,168.91,38.95046365]
[1730423832360,7.84338235,168.95,168.91,38.95046365]
[1730423833463,7.84338235,168.95,168.91,31.1070813]
[1730423834574,7.84338235,168.94,168.91,31.1070813]
[1730423835158,7.84338235,168.95,168.91,31.1070813]
[1730423840473,7.84338235,168.94,168.91,31.1070813]
[1730423840772,7.84338235,168.92,168.91,10.3864813]
[1730423841574,7.84338235,168.92,168.89,5.9208]
[1730423841768,7.84338235,168.91,168.88,20.85019]
[1730423842569,7.84338235,168.93,168.88,28.69357235]
[1730423842780,7.84338235,168.94,168.89,7.84338235]
[1730423843250,7.84338235,168.95,168.89,7.84338235]
[1730423844070,7.84338235,168.95,168.9,5.9206]
[1730423844780,7.84338235,168.95,168.9,28.56558235]
[1730423845453,7.84338235,168.95,168.9,20.7222]
[1730423847561,7.84338235,168.94,168.9,20.7222]
[1730423847957,7.84338235,168.94,168.9,14.8016]
[1730423849679,7.84338235,168.95,168.9,28.56558235]
[1730423849972,7.84338235,168.96,168.91,7.84338235]
[1730423850863,7.84338235,168.96,168.9,22.64498235]
[1730423851064,7.84338235,168.95,168.9,22.64498235]
[1730423851384,7.84338235,168.95,168.9,14.8016]
[1730423851671,7.84338235,168.93,168.9,14.8016]
[1730423851879,7.84338235,168.92,168.9,14.8016]
[1730423852679,7.84338235,168.93,168.9,14.8016]
[1730423853182,7.84338235,168.94,168.9,14.8016]
[1730423854977,7.84338235,168.94,168.9,20.7222]
[1730423856557,7.84338235,168.94,168.9,14.8016]
[1730423858482,7.84338235,168.93,168.9,14.8016]
[1730423860873,7.84338235,168.92,168.9,14.8016]
[1730423861387,7.84338235,168.93,168.9,14.8016]
[1730423863664,13.76278235,168.94,168.9,14.8016]
[1730423863875,7.84338235,168.95,168.9,22.64498235]
[1730423864298,7.84338235,168.96,168.9,22.64498235]
[1730423864583,20.0,168.95,168.9,22.64498235]
[1730423865177,20.0,168.95,168.9,28.56558235]
[1730423865573,27.84338235,168.95,168.9,20.7222]
[1730423868379,27.84338235,168.95,168.91,2.89616562]
[1730423869091,7.84338235,168.94,168.91,2.89616562]
[1730423869285,7.84338235,168.94,168.91,2.89791743]
[1730423870662,7.84338235,168.93,168.91,2.89791743]
[1730423870867,7.84338235,168.93,168.9,14.8016]
[1730423871092,7.84338235,168.93,168.9,17.69951743]
[1730423871287,7.84338235,168.93,168.91,2.89791743]
[1730423871598,7.84338235,168.92,168.91,2.89791743]
[1730423871782,7.84338235,168.92,168.89,2.89791743]
[1730423871974,7.84338235,168.91,168.89,2.89791743]
[1730423872173,7.84338235,168.91,168.9,2.89791743]
[1730423872896,7.84338235,168.91,168.88,2.89791743]
[1730423873186,7.84338235,168.91,168.89,2.89791743]
[1730423873372,7.84338235,168.91,168.9,2.89791743]
[1730423875698,7.84338235,168.91,168.9,2.90140016]
[1730423881982,7.84338235,168.91,168.9,2.90051742]
[1730423885699,33.76368235,168.91,168.88,2.90051742]
[1730423885907,7.84338235,168.89,168.86,0.6023963]
[1730423886083,27.84338235,168.87,168.86,0.6023963]
[1730423886583,27.84338235,168.87,168.86,3.50466477]
[1730423886894,27.84338235,168.87,168.86,0.6023963]
[1730423887409,33.76508235,168.87,168.86,0.6023963]
[1730423891380,20.0,168.86,168.78,5.9248]
[1730423891580,7.84338235,168.79,168.77,9.06888108]
[1730423891801,7.84338235,168.8,168.77,8.82006789]
[1730423892297,7.84338235,168.8,168.77,5.9252]
[1730423893184,7.84338235,168.8,168.76,14.8131]
[1730423893185,7.84338235,168.8,168.76,20.7386]
[1730423894399,7.84338235,168.81,168.76,20.7386]
[1730423894701,7.84338235,168.81,168.76,28.58198235]
[1730423895089,7.84338235,168.8,168.76,20.7386]
[1730423896775,7.84338235,168.84,168.78,7.84338235]
[1730423896975,20.0,168.83,168.78,7.84338235]
[1730423897398,7.84338235,168.84,168.79,7.84338235]
[1730423897693,7.84338235,168.84,168.78,7.84338235]
[1730423898086,7.84338235,168.84,168.79,20.7358]
[1730423900098,7.84338235,168.84,168.73,35.90485283]
[1730423900099,39.21691175,168.8,168.75,14.8142]
[1730423900306,7.84338235,168.76,168.75,14.8142]
[1730423900515,7.84338235,168.76,168.69,9.47371416]
[1730423900516,7.84338235,168.76,168.71,14.8174]
[1730423900803,7.84338235,168.74,168.71,14.8174]
[1730423901103,7.84338235,168.73,168.71,14.8174]
[1730423901512,7.84338235,168.74,168.71,14.8174]
[1730423901888,7.84338235,168.74,168.71,20.7447]
[1730423902895,7.84338235,168.75,168.71,20.7447]
[1730423903101,7.84338235,168.76,168.71,28.58808235]
[1730423904094,7.84338235,168.75,168.71,20.7447]